[Event "*** Titled Tuesday Blitz"]
[Site "Chess.com"]
[Date "2020.05.26"]
[Round "10"]
[White "RobertPrieb2007"]
[Black "ElGasanov"]
[Result "1-0"]
[WhiteElo "2505"]
[BlackElo "2734"]
[TimeControl "180+1"]
[EndTime "12:01:21 PDT"]
[Termination "RobertPrieb2007 won by resignation"]

1. d4 {[%clk 0:03:00.9]} 1... d6 {[%clk 0:03:00]} 2. Nf3 {[%clk 0:02:55.9]} 2...
g6 {[%clk 0:02:59.6]} 3. c4 {[%clk 0:02:55.2]} 3... Bg7 {[%clk 0:02:57.3]} 4.
Nc3 {[%clk 0:02:54.7]} 4... Bg4 {[%clk 0:02:56.7]} 5. e4 {[%clk 0:02:49.4]} 5...
Nc6 {[%clk 0:02:55.3]} 6. d5 {[%clk 0:02:46.3]} 6... Nd4 {[%clk 0:02:52.4]} 7.
Be3 {[%clk 0:02:45.5]} 7... Bxf3 {[%clk 0:02:50.6]} 8. gxf3 {[%clk 0:02:43.1]}
8... c5 {[%clk 0:02:51.1]} 9. dxc6 {[%clk 0:02:39.6]} 9... Nxc6 {[%clk
0:02:51.3]} 10. Bg2 {[%clk 0:02:33.7]} 10... Bxc3+ {[%clk 0:02:42.7]} 11. bxc3
{[%clk 0:02:32.3]} 11... Qa5 {[%clk 0:02:43.6]} 12. Qb3 {[%clk 0:02:28.4]} 12...
Nf6 {[%clk 0:02:30.9]} 13. Qxb7 {[%clk 0:02:24]} 13... Qxc3+ {[%clk 0:02:22.4]}
14. Bd2 {[%clk 0:02:23.4]} 14... Qxa1+ {[%clk 0:01:06.6]} 15. Ke2 {[%clk
0:02:22.8]} 15... Nd4+ {[%clk 0:01:07.1]} 16. Kd3 {[%clk 0:02:20.4]} 16... Qxa2
{[%clk 0:01:02.4]} 17. Qxa8+ {[%clk 0:02:19.9]} 17... Kd7 {[%clk 0:01:03]} 18.
Qb7+ {[%clk 0:02:12]} 18... Kd8 {[%clk 0:00:53.9]} 19. Qb8+ {[%clk 0:01:58.7]}
19... Kd7 {[%clk 0:00:53.9]} 20. Qb7+ {[%clk 0:01:58.8]} 20... Kd8 {[%clk
0:00:54]} 21. Rb1 {[%clk 0:01:55.1]} 21... e5 {[%clk 0:00:33.6]} 22. Bh3 {[%clk
0:01:47.5]} 22... Qa3+ {[%clk 0:00:25.8]} 23. Bc3 {[%clk 0:01:43.6]} 23... Re8
{[%clk 0:00:19.1]} 24. Qc8+ {[%clk 0:01:36.7]} 24... Ke7 {[%clk 0:00:18.8]} 25.
Rb7+ {[%clk 0:01:35.7]} 25... Kf8 {[%clk 0:00:17.5]} 26. Qc7 {[%clk 0:01:33.9]}
26... Kg7 {[%clk 0:00:04.8]} 27. Qxf7+ {[%clk 0:01:31.5]} 27... Kh6 {[%clk
0:00:05.3]} 28. Qxf6 {[%clk 0:01:25.5]} 1-0

[Event "*** Titled Tuesday Blitz"]
[Site "Chess.com"]
[Date "2020.05.26"]
[Round "10"]
[White "mrkvoz"]
[Black "Witik"]
[Result "1-0"]
[WhiteElo "2834"]
[BlackElo "2664"]
[TimeControl "180+1"]
[EndTime "12:01:22 PDT"]
[Termination "mrkvoz won by resignation"]

1. e4 {[%clk 0:03:00.9]} 1... c6 {[%clk 0:02:58.9]} 2. Nc3 {[%clk 0:03:00.5]}
2... d5 {[%clk 0:02:59.1]} 3. d3 {[%clk 0:02:59.5]} 3... Nf6 {[%clk 0:02:56.5]}
4. e5 {[%clk 0:02:58.1]} 4... Nfd7 {[%clk 0:02:56.3]} 5. f4 {[%clk 0:02:58.8]}
5... e6 {[%clk 0:02:53.6]} 6. Nf3 {[%clk 0:02:58.2]} 6... c5 {[%clk 0:02:54.1]}
7. d4 {[%clk 0:02:57.3]} 7... Nc6 {[%clk 0:02:54.4]} 8. Be3 {[%clk 0:02:56.7]}
8... cxd4 {[%clk 0:02:52.2]} 9. Nxd4 {[%clk 0:02:56.5]} 9... Bc5 {[%clk
0:02:52]} 10. Qd2 {[%clk 0:02:56.5]} 10... O-O {[%clk 0:02:51.9]} 11. O-O-O
{[%clk 0:02:56.2]} 11... a6 {[%clk 0:02:49.6]} 12. Kb1 {[%clk 0:02:49.1]} 12...
Bxd4 {[%clk 0:02:46]} 13. Bxd4 {[%clk 0:02:50]} 13... b5 {[%clk 0:02:46.6]} 14.
Be3 {[%clk 0:02:48.5]} 14... Nb6 {[%clk 0:02:38.9]} 15. b3 {[%clk 0:02:48.9]}
15... b4 {[%clk 0:02:35.1]} 16. Ne2 {[%clk 0:02:48.7]} 16... a5 {[%clk
0:02:34.6]} 17. Nd4 {[%clk 0:02:48.9]} 17... Bd7 {[%clk 0:02:29.6]} 18. Qf2
{[%clk 0:02:47.5]} 18... Rb8 {[%clk 0:02:13.5]} 19. g4 {[%clk 0:02:42.3]} 19...
a4 {[%clk 0:02:13.1]} 20. Nxc6 {[%clk 0:02:39.7]} 20... Bxc6 {[%clk 0:02:13.2]}
21. Rg1 {[%clk 0:02:30.9]} 21... axb3 {[%clk 0:01:58.6]} 22. cxb3 {[%clk
0:02:31.8]} 22... d4 {[%clk 0:01:56.7]} 23. Bxd4 {[%clk 0:02:28.4]} 23... Nd5
{[%clk 0:01:48.9]} 24. Bc4 {[%clk 0:02:26.1]} 24... Qa5 {[%clk 0:01:48.7]} 25.
f5 {[%clk 0:02:17.6]} 25... Nc3+ {[%clk 0:01:47.3]} 26. Bxc3 {[%clk 0:02:15.9]}
26... bxc3 {[%clk 0:01:47.9]} 27. Ka1 {[%clk 0:02:13.2]} 27... Qxe5 {[%clk
0:01:37.2]} 28. Qd4 {[%clk 0:02:13.2]} 28... Qxd4 {[%clk 0:01:26.4]} 29. Rxd4
{[%clk 0:02:14.1]} 29... exf5 {[%clk 0:01:26]} 30. gxf5 {[%clk 0:02:13.9]} 30...
Rfd8 {[%clk 0:01:22.7]} 31. Rxd8+ {[%clk 0:02:13.9]} 31... Rxd8 {[%clk
0:01:22.6]} 32. Rc1 {[%clk 0:02:14.8]} 32... Be4 {[%clk 0:01:12.7]} 33. Rxc3
{[%clk 0:02:14.8]} 33... Bxf5 {[%clk 0:01:08.5]} 34. a4 {[%clk 0:02:15]} 34...
Be4 {[%clk 0:01:06.2]} 35. b4 {[%clk 0:02:14.8]} 35... g5 {[%clk 0:01:02.7]} 36.
b5 {[%clk 0:02:14.6]} 36... Kg7 {[%clk 0:01:00.2]} 37. a5 {[%clk 0:02:14.4]}
37... f5 {[%clk 0:01:00.4]} 38. a6 {[%clk 0:02:14.4]} 38... Rd6 {[%clk
0:00:47.7]} 39. Re3 {[%clk 0:02:06.2]} 39... Rd4 {[%clk 0:00:44.1]} 40. Rxe4
{[%clk 0:02:05.1]} 40... fxe4 {[%clk 0:00:39.5]} 41. a7 {[%clk 0:02:05.1]} 41...
Rd8 {[%clk 0:00:30.3]} 42. b6 {[%clk 0:02:03.3]} 42... Ra8 {[%clk 0:00:23.2]}
43. Kb2 {[%clk 0:01:57.2]} 43... e3 {[%clk 0:00:21.7]} 44. b7 {[%clk 0:01:52.1]}
1-0

[Event "*** Titled Tuesday Blitz"]
[Site "Chess.com"]
[Date "2020.05.26"]
[Round "10"]
[White "chesslh19"]
[Black "TheoSlade"]
[Result "0-1"]
[WhiteElo "2165"]
[BlackElo "2321"]
[TimeControl "180+1"]
[EndTime "12:01:22 PDT"]
[Termination "TheoSlade won by resignation"]

1. e4 {[%clk 0:03:00.9]} 1... e5 {[%clk 0:03:00.5]} 2. Nf3 {[%clk 0:03:00.9]}
2... Nc6 {[%clk 0:03:01.1]} 3. Bb5 {[%clk 0:03:01.5]} 3... Nf6 {[%clk
0:03:01.2]} 4. O-O {[%clk 0:02:58.9]} 4... Nxe4 {[%clk 0:03:01.6]} 5. Re1 {[%clk
0:02:59]} 5... Nd6 {[%clk 0:03:02.2]} 6. Nxe5 {[%clk 0:02:59.2]} 6... Be7 {[%clk
0:03:02.8]} 7. Bf1 {[%clk 0:02:57.1]} 7... Nxe5 {[%clk 0:03:03.1]} 8. Rxe5
{[%clk 0:02:56.7]} 8... O-O {[%clk 0:03:03.8]} 9. d4 {[%clk 0:02:56]} 9... Bf6
{[%clk 0:03:04.2]} 10. Re1 {[%clk 0:02:55.9]} 10... Re8 {[%clk 0:03:04.8]} 11.
c3 {[%clk 0:02:39.7]} 11... Rxe1 {[%clk 0:03:03.8]} 12. Qxe1 {[%clk 0:02:39.8]}
12... Ne8 {[%clk 0:02:57.5]} 13. Bf4 {[%clk 0:02:31.2]} 13... d5 {[%clk
0:02:57.2]} 14. Nd2 {[%clk 0:02:31.2]} 14... Bf5 {[%clk 0:02:50.8]} 15. Nf3
{[%clk 0:02:24.8]} 15... g6 {[%clk 0:02:46]} 16. Qd2 {[%clk 0:02:09]} 16... Ng7
{[%clk 0:02:44.8]} 17. Re1 {[%clk 0:01:52.7]} 17... c6 {[%clk 0:02:40]} 18. Bg5
{[%clk 0:01:43.8]} 18... Ne6 {[%clk 0:02:33.2]} 19. Bxf6 {[%clk 0:01:42.7]}
19... Qxf6 {[%clk 0:02:34.1]} 20. Ne5 {[%clk 0:01:39.5]} 20... Re8 {[%clk
0:02:32.9]} 21. Bd3 {[%clk 0:01:29.9]} 21... Bxd3 {[%clk 0:02:31.1]} 22. Nxd3
{[%clk 0:01:28.5]} 22... Qd8 {[%clk 0:02:27.5]} 23. h3 {[%clk 0:01:18.1]} 23...
Ng7 {[%clk 0:02:25.3]} 24. Rxe8+ {[%clk 0:01:16.3]} 24... Qxe8 {[%clk
0:02:25.9]} 25. Qe1 {[%clk 0:01:08.8]} 25... Qxe1+ {[%clk 0:02:23.6]} 26. Nxe1
{[%clk 0:01:09.4]} 26... Nf5 {[%clk 0:02:20.8]} 27. Nd3 {[%clk 0:01:06.7]} 27...
Kg7 {[%clk 0:02:19.5]} 28. g3 {[%clk 0:01:02.6]} 28... Kf6 {[%clk 0:02:19]} 29.
Kg2 {[%clk 0:01:02.6]} 29... Nd6 {[%clk 0:02:18.1]} 30. Kf3 {[%clk 0:00:55.9]}
30... h5 {[%clk 0:02:18.4]} 31. h4 {[%clk 0:00:53.7]} 31... Nc4 {[%clk 0:02:17]}
32. b3 {[%clk 0:00:48.4]} 32... Nd2+ {[%clk 0:02:15.2]} 33. Ke2 {[%clk
0:00:48.5]} 33... Ne4 {[%clk 0:02:15.4]} 34. c4 {[%clk 0:00:41.1]} 34... Nc3+
{[%clk 0:02:06.4]} 35. Kd2 {[%clk 0:00:36]} 35... Nxa2 {[%clk 0:02:06.6]} 36.
cxd5 {[%clk 0:00:36]} 36... cxd5 {[%clk 0:02:06.3]} 37. Kc2 {[%clk 0:00:30.9]}
37... a5 {[%clk 0:02:06]} 38. Kb2 {[%clk 0:00:29.5]} 38... Nb4 {[%clk 0:02:06]}
39. Nxb4 {[%clk 0:00:29.5]} 39... axb4 {[%clk 0:02:06.9]} 40. Kc2 {[%clk
0:00:28]} 40... Kf5 {[%clk 0:02:04.9]} 41. f3 {[%clk 0:00:25.6]} 41... g5 {[%clk
0:01:58.6]} 42. hxg5 {[%clk 0:00:24.7]} 42... Kxg5 {[%clk 0:01:59.5]} 43. Kd3
{[%clk 0:00:24.7]} 43... h4 {[%clk 0:01:58.2]} 44. gxh4+ {[%clk 0:00:20.2]}
44... Kxh4 {[%clk 0:01:59.1]} 45. Ke3 {[%clk 0:00:17.9]} 45... Kg3 {[%clk
0:01:58.7]} 46. Ke2 {[%clk 0:00:16.5]} 46... f5 {[%clk 0:01:56.1]} 47. Ke3
{[%clk 0:00:16.8]} 47... f4+ {[%clk 0:01:56.3]} 48. Ke2 {[%clk 0:00:15.7]} 48...
Kg2 {[%clk 0:01:56.6]} 0-1

[Event "*** Titled Tuesday Blitz"]
[Site "Chess.com"]
[Date "2020.05.26"]
[Round "10"]
[White "manuellarrea"]
[Black "Enriquack"]
[Result "0-1"]
[WhiteElo "2173"]
[BlackElo "2321"]
[TimeControl "180+1"]
[EndTime "12:01:24 PDT"]
[Termination "Enriquack won on time"]

1. e4 {[%clk 0:03:00.3]} 1... c5 {[%clk 0:02:59.9]} 2. Nf3 {[%clk 0:03:00.2]}
2... e6 {[%clk 0:03:00]} 3. d4 {[%clk 0:03:00.5]} 3... cxd4 {[%clk 0:03:00.9]}
4. Nxd4 {[%clk 0:03:00.7]} 4... Nc6 {[%clk 0:03:01.5]} 5. Nc3 {[%clk 0:03:00.8]}
5... Qc7 {[%clk 0:03:01.9]} 6. Be3 {[%clk 0:03:00.6]} 6... a6 {[%clk 0:03:01.7]}
7. Qf3 {[%clk 0:03:00.8]} 7... b5 {[%clk 0:03:01.6]} 8. Nxc6 {[%clk 0:02:54]}
8... Qxc6 {[%clk 0:03:01.7]} 9. O-O-O {[%clk 0:02:52.2]} 9... Bb7 {[%clk
0:03:01.9]} 10. Bd3 {[%clk 0:02:46.3]} 10... Rc8 {[%clk 0:03:01.9]} 11. Kb1
{[%clk 0:02:45.5]} 11... Nf6 {[%clk 0:02:52.8]} 12. Qg3 {[%clk 0:02:42.8]} 12...
b4 {[%clk 0:02:51.9]} 13. Ne2 {[%clk 0:02:41]} 13... Nxe4 {[%clk 0:02:52.1]} 14.
Bxe4 {[%clk 0:02:25]} 14... Qxe4 {[%clk 0:02:51.8]} 15. Nd4 {[%clk 0:02:13.9]}
15... Qxg2 {[%clk 0:02:47.9]} 16. Qe5 {[%clk 0:02:02]} 16... Qe4 {[%clk
0:02:29.2]} 17. Qa5 {[%clk 0:01:52.8]} 17... Bc5 {[%clk 0:02:26.4]} 18. Rhe1
{[%clk 0:01:44.6]} 18... O-O {[%clk 0:02:13.2]} 19. Nb3 {[%clk 0:01:09]} 19...
Bxe3 {[%clk 0:02:07.5]} 20. fxe3 {[%clk 0:00:52.3]} 20... Qxc2+ {[%clk
0:02:05.5]} 21. Ka1 {[%clk 0:00:51.5]} 21... Bd5 {[%clk 0:01:37.6]} 22. Rg1
{[%clk 0:00:39.8]} 22... Bxb3 {[%clk 0:01:25.7]} 23. axb3 {[%clk 0:00:38.3]}
23... d5 {[%clk 0:01:26.3]} 24. Qxb4 {[%clk 0:00:22.1]} 24... Rb8 {[%clk
0:01:24.7]} 25. Qg4 {[%clk 0:00:04.9]} 25... g6 {[%clk 0:01:23.2]} 26. Qd4
{[%clk 0:00:02]} 26... Qxb3 {[%clk 0:01:21.3]} 0-1

[Event "*** Titled Tuesday Blitz"]
[Site "Chess.com"]
[Date "2020.05.26"]
[Round "10"]
[White "Zakaryan_David"]
[Black "vanea_03"]
[Result "1/2-1/2"]
[WhiteElo "2535"]
[BlackElo "2686"]
[TimeControl "180+1"]
[EndTime "12:01:26 PDT"]
[Termination "Game drawn by repetition"]

1. d4 {[%clk 0:03:00.9]} 1... d5 {[%clk 0:02:58.9]} 2. c4 {[%clk 0:03:00.4]}
2... dxc4 {[%clk 0:02:59.8]} 3. e3 {[%clk 0:02:58.7]} 3... e5 {[%clk 0:02:59.1]}
4. Bxc4 {[%clk 0:02:56.7]} 4... exd4 {[%clk 0:02:58.7]} 5. exd4 {[%clk
0:02:57.6]} 5... Bd6 {[%clk 0:02:58.3]} 6. Nf3 {[%clk 0:02:56.5]} 6... Nf6
{[%clk 0:02:58.3]} 7. O-O {[%clk 0:02:50.9]} 7... O-O {[%clk 0:02:57.9]} 8. Nc3
{[%clk 0:02:47.1]} 8... Nc6 {[%clk 0:02:55]} 9. Bg5 {[%clk 0:02:46.4]} 9... h6
{[%clk 0:02:54.3]} 10. Bh4 {[%clk 0:02:45.6]} 10... Bg4 {[%clk 0:02:41.4]} 11.
h3 {[%clk 0:02:33.1]} 11... Bxf3 {[%clk 0:02:31.8]} 12. Qxf3 {[%clk 0:02:34]}
12... Nxd4 {[%clk 0:02:30.8]} 13. Qxb7 {[%clk 0:02:33]} 13... Nf5 {[%clk
0:02:22.9]} 14. Bxf6 {[%clk 0:02:30.3]} 14... Qxf6 {[%clk 0:02:23.8]} 15. Rfe1
{[%clk 0:02:15.7]} 15... Qh4 {[%clk 0:01:55.6]} 16. Qe4 {[%clk 0:02:05.3]} 16...
Qxe4 {[%clk 0:01:52.1]} 17. Nxe4 {[%clk 0:02:02.2]} 17... Bb4 {[%clk 0:01:51.6]}
18. Red1 {[%clk 0:01:59.7]} 18... Nd6 {[%clk 0:01:51.5]} 19. Bd5 {[%clk
0:01:51.4]} 19... Rab8 {[%clk 0:01:46.8]} 20. a3 {[%clk 0:01:47.1]} 20... Nxe4
{[%clk 0:01:38.4]} 21. axb4 {[%clk 0:01:25.4]} 21... Rxb4 {[%clk 0:01:39.3]} 22.
Rxa7 {[%clk 0:01:22.1]} 22... Nf6 {[%clk 0:01:38.8]} 23. Rxc7 {[%clk 0:01:20.8]}
23... Nxd5 {[%clk 0:01:37.6]} 24. Rxd5 {[%clk 0:01:20.2]} 24... Rxb2 {[%clk
0:01:37.6]} 25. Rdd7 {[%clk 0:01:18.8]} 25... Rb6 {[%clk 0:01:36.9]} 26. g4
{[%clk 0:01:17.1]} 26... Rf6 {[%clk 0:01:36.8]} 27. Kg2 {[%clk 0:01:16.7]} 27...
g5 {[%clk 0:01:32.1]} 28. Rc2 {[%clk 0:01:14]} 28... Kg7 {[%clk 0:01:30]} 29.
Rc3 {[%clk 0:01:13.2]} 29... Kg6 {[%clk 0:01:29.6]} 30. Rf3 {[%clk 0:01:12.4]}
30... Rxf3 {[%clk 0:01:28.1]} 31. Kxf3 {[%clk 0:01:11.9]} 31... Ra8 {[%clk
0:01:27.4]} 32. Rd6+ {[%clk 0:01:11.2]} 32... f6 {[%clk 0:01:27.4]} 33. Kg3
{[%clk 0:01:10.6]} 33... Ra3+ {[%clk 0:01:25.5]} 34. f3 {[%clk 0:01:08.4]} 34...
Rb3 {[%clk 0:01:25.5]} 35. Ra6 {[%clk 0:01:07.3]} 35... Rc3 {[%clk 0:01:25.5]}
36. Rb6 {[%clk 0:01:06.7]} 36... Ra3 {[%clk 0:01:25.6]} 37. Rc6 {[%clk
0:01:06.2]} 37... Rb3 {[%clk 0:01:25.7]} 38. Ra6 {[%clk 0:01:05.5]} 38... Rc3
{[%clk 0:01:25.8]} 39. Ra5 {[%clk 0:01:04.8]} 39... Rb3 {[%clk 0:01:25.5]} 40.
Rf5 {[%clk 0:01:03.9]} 40... h5 {[%clk 0:01:19.9]} 41. Ra5 {[%clk 0:01:03.1]}
41... h4+ {[%clk 0:01:18.1]} 42. Kg2 {[%clk 0:01:02.6]} 42... Rb2+ {[%clk
0:01:18.5]} 43. Kg1 {[%clk 0:01:01.6]} 43... Rb3 {[%clk 0:01:18.9]} 44. Kf2
{[%clk 0:01:01]} 44... Rb2+ {[%clk 0:01:18.6]} 45. Kg1 {[%clk 0:01:00.3]} 45...
Rb3 {[%clk 0:01:18.2]} 46. Kf2 {[%clk 0:00:59.6]} 46... Rb2+ {[%clk 0:01:18.5]}
47. Kg1 {[%clk 0:00:59.1]} 1/2-1/2

[Event "*** Titled Tuesday Blitz"]
[Site "Chess.com"]
[Date "2020.05.26"]
[Round "10"]
[White "Ariadna_Atreides"]
[Black "kot60"]
[Result "1-0"]
[WhiteElo "2085"]
[BlackElo "2371"]
[TimeControl "180+1"]
[EndTime "12:01:32 PDT"]
[Termination "Ariadna_Atreides won by resignation"]

1. d4 {[%clk 0:03:00.9]} 1... Nf6 {[%clk 0:02:58.7]} 2. Nf3 {[%clk 0:03:00.5]}
2... g6 {[%clk 0:02:58.4]} 3. c4 {[%clk 0:03:00]} 3... Bg7 {[%clk 0:02:58.4]} 4.
Nc3 {[%clk 0:03:00.6]} 4... d5 {[%clk 0:02:58.6]} 5. cxd5 {[%clk 0:03:00.5]}
5... Nxd5 {[%clk 0:02:59.1]} 6. Na4 {[%clk 0:03:01.1]} 6... O-O {[%clk
0:02:56.7]} 7. e4 {[%clk 0:03:00.9]} 7... Nb6 {[%clk 0:02:56.7]} 8. Be3 {[%clk
0:03:01.2]} 8... N8d7 {[%clk 0:02:55.3]} 9. Be2 {[%clk 0:02:48.1]} 9... Nf6
{[%clk 0:02:55.3]} 10. Nc5 {[%clk 0:02:41.2]} 10... Nbd7 {[%clk 0:02:52.7]} 11.
Nxd7 {[%clk 0:02:32.5]} 11... Bxd7 {[%clk 0:02:52.3]} 12. Qc2 {[%clk 0:02:27.7]}
12... c6 {[%clk 0:02:36.3]} 13. O-O {[%clk 0:02:25.5]} 13... Bg4 {[%clk
0:02:30.1]} 14. h3 {[%clk 0:02:21.5]} 14... Bxf3 {[%clk 0:02:29.6]} 15. Bxf3
{[%clk 0:02:21.4]} 15... Ne8 {[%clk 0:02:26.8]} 16. a3 {[%clk 0:02:12.8]} 16...
Nd6 {[%clk 0:02:25.4]} 17. Rfd1 {[%clk 0:02:09.1]} 17... Rc8 {[%clk 0:02:19.7]}
18. b4 {[%clk 0:02:05.2]} 18... b5 {[%clk 0:02:16.1]} 19. g4 {[%clk 0:01:44.8]}
19... Qd7 {[%clk 0:02:09.1]} 20. Be2 {[%clk 0:01:37.4]} 20... Qe6 {[%clk
0:02:00.6]} 21. e5 {[%clk 0:01:24.6]} 21... Ne8 {[%clk 0:01:55.9]} 22. Rac1
{[%clk 0:01:18.4]} 22... a6 {[%clk 0:01:44.3]} 23. f4 {[%clk 0:01:16.5]} 23...
f5 {[%clk 0:01:36.5]} 24. d5 {[%clk 0:01:10]} 24... Qf7 {[%clk 0:01:28.8]} 25.
dxc6 {[%clk 0:00:47.1]} 25... fxg4 {[%clk 0:01:20.9]} 26. Bxg4 {[%clk
0:00:40.2]} 26... Rc7 {[%clk 0:01:06]} 27. Rd7 {[%clk 0:00:39.2]} 27... h5
{[%clk 0:01:01.1]} 28. Bf3 {[%clk 0:00:31.6]} 28... Qe6 {[%clk 0:00:55.8]} 29.
Bd5 {[%clk 0:00:29.8]} 1-0

[Event "*** Titled Tuesday Blitz"]
[Site "Chess.com"]
[Date "2020.05.26"]
[Round "10"]
[White "antoszu"]
[Black "silverback96"]
[Result "1-0"]
[WhiteElo "2502"]
[BlackElo "2323"]
[TimeControl "180+1"]
[EndTime "12:01:36 PDT"]
[Termination "antoszu won on time"]

1. e4 {[%clk 0:03:00.9]} 1... e6 {[%clk 0:02:59.7]} 2. d4 {[%clk 0:03:01]} 2...
d5 {[%clk 0:03:00.4]} 3. Nd2 {[%clk 0:03:01.7]} 3... Nf6 {[%clk 0:02:59.9]} 4.
e5 {[%clk 0:03:01]} 4... Nfd7 {[%clk 0:03:00.4]} 5. Bd3 {[%clk 0:03:01.7]} 5...
c5 {[%clk 0:03:00.7]} 6. c3 {[%clk 0:03:02.1]} 6... Nc6 {[%clk 0:03:01.2]} 7.
Ne2 {[%clk 0:03:01.9]} 7... cxd4 {[%clk 0:03:01.8]} 8. cxd4 {[%clk 0:03:02.8]}
8... f6 {[%clk 0:03:02.7]} 9. exf6 {[%clk 0:03:03.3]} 9... Nxf6 {[%clk
0:03:03.6]} 10. O-O {[%clk 0:03:02.8]} 10... Bd6 {[%clk 0:03:04.5]} 11. Nf3
{[%clk 0:03:02.3]} 11... Qc7 {[%clk 0:03:05.4]} 12. h3 {[%clk 0:02:59]} 12...
O-O {[%clk 0:03:05.5]} 13. Be3 {[%clk 0:02:59.4]} 13... Nh5 {[%clk 0:02:46.8]}
14. Rc1 {[%clk 0:02:55.2]} 14... Rxf3 {[%clk 0:02:24.6]} 15. gxf3 {[%clk
0:02:56.1]} 15... Qf7 {[%clk 0:02:24.6]} 16. Ng3 {[%clk 0:02:34.7]} 16... Nf4
{[%clk 0:02:09.3]} 17. Bxf4 {[%clk 0:02:27.8]} 17... Bxf4 {[%clk 0:02:10.2]} 18.
Rc3 {[%clk 0:02:25.4]} 18... e5 {[%clk 0:01:59.1]} 19. dxe5 {[%clk 0:02:20.5]}
19... Bxh3 {[%clk 0:01:57.3]} 20. Re1 {[%clk 0:02:20]} 20... Nxe5 {[%clk
0:01:52.8]} 21. Bf1 {[%clk 0:02:14.4]} 21... Bxf1 {[%clk 0:01:29.9]} 22. Rxf1
{[%clk 0:02:15.3]} 22... h5 {[%clk 0:01:28.2]} 23. Ne2 {[%clk 0:01:58.8]} 23...
d4 {[%clk 0:01:20.1]} 24. Qxd4 {[%clk 0:01:48.2]} 24... Bh2+ {[%clk 0:00:16.4]}
25. Kxh2 {[%clk 0:01:25.1]} 25... Nxf3+ {[%clk 0:00:15.6]} 26. Rxf3 {[%clk
0:01:25]} 26... Qxf3 {[%clk 0:00:16.5]} 27. Rg1 {[%clk 0:01:19.8]} 1-0

[Event "*** Titled Tuesday Blitz"]
[Site "Chess.com"]
[Date "2020.05.26"]
[Round "10"]
[White "Vandros57"]
[Black "Koalaskakistis"]
[Result "1-0"]
[WhiteElo "2242"]
[BlackElo "2404"]
[TimeControl "180+1"]
[EndTime "12:01:38 PDT"]
[Termination "Vandros57 won by resignation"]

1. d4 {[%clk 0:03:00.9]} 1... f5 {[%clk 0:02:59.1]} 2. e4 {[%clk 0:02:59.4]}
2... fxe4 {[%clk 0:02:58.9]} 3. Nc3 {[%clk 0:02:58.6]} 3... Nf6 {[%clk 0:02:59]}
4. Bg5 {[%clk 0:02:57.3]} 4... g6 {[%clk 0:02:57.5]} 5. Bxf6 {[%clk 0:02:54.1]}
5... exf6 {[%clk 0:02:58.4]} 6. Nxe4 {[%clk 0:02:52.9]} 6... d5 {[%clk
0:02:58.4]} 7. Ng3 {[%clk 0:02:49]} 7... Bd6 {[%clk 0:02:55.3]} 8. Nf3 {[%clk
0:02:47.4]} 8... O-O {[%clk 0:02:36.6]} 9. Be2 {[%clk 0:02:42.1]} 9... Nc6
{[%clk 0:02:33.8]} 10. O-O {[%clk 0:02:39.8]} 10... f5 {[%clk 0:02:31.8]} 11.
Re1 {[%clk 0:02:34.1]} 11... Qf6 {[%clk 0:02:24.2]} 12. c4 {[%clk 0:02:24.9]}
12... dxc4 {[%clk 0:02:22.9]} 13. Bxc4+ {[%clk 0:02:23.8]} 13... Kg7 {[%clk
0:02:22.4]} 14. Bb3 {[%clk 0:02:04.4]} 14... Bd7 {[%clk 0:02:18.8]} 15. Rc1
{[%clk 0:02:02.3]} 15... Rae8 {[%clk 0:02:12.2]} 16. Qd3 {[%clk 0:01:59]} 16...
Nb4 {[%clk 0:01:52.3]} 17. Qc4 {[%clk 0:01:43.5]} 17... Bc6 {[%clk 0:01:33.8]}
18. Ne5 {[%clk 0:01:30.5]} 18... Bd5 {[%clk 0:01:24.7]} 19. Qc3 {[%clk
0:01:22.9]} 19... Re7 {[%clk 0:00:36.5]} 20. h3 {[%clk 0:01:11.2]} 20... Nxa2
{[%clk 0:00:31]} 21. Bxa2 {[%clk 0:01:03.8]} 21... Bxa2 {[%clk 0:00:31.9]} 22.
b3 {[%clk 0:00:57.7]} 22... Rfe8 {[%clk 0:00:10.9]} 23. Qb2 {[%clk 0:00:51.8]}
1-0

[Event "*** Titled Tuesday Blitz"]
[Site "Chess.com"]
[Date "2020.05.26"]
[Round "10"]
[White "TranJMinh"]
[Black "Lubov_Gordyk"]
[Result "0-1"]
[WhiteElo "2768"]
[BlackElo "2634"]
[TimeControl "180+1"]
[EndTime "12:01:46 PDT"]
[Termination "Lubov_Gordyk won by checkmate"]

1. d4 {[%clk 0:03:00.1]} 1... c5 {[%clk 0:02:59.3]} 2. d5 {[%clk 0:02:59.7]}
2... f5 {[%clk 0:02:57.7]} 3. Nc3 {[%clk 0:03:00.6]} 3... Nf6 {[%clk 0:02:55.6]}
4. Bg5 {[%clk 0:03:01.1]} 4... Qb6 {[%clk 0:02:54]} 5. Bxf6 {[%clk 0:02:56.8]}
5... Qxf6 {[%clk 0:02:53.6]} 6. e3 {[%clk 0:02:55.2]} 6... g6 {[%clk 0:02:50.4]}
7. Nge2 {[%clk 0:02:53.2]} 7... Bg7 {[%clk 0:02:48.5]} 8. g3 {[%clk 0:02:53.4]}
8... d6 {[%clk 0:02:45.6]} 9. Bg2 {[%clk 0:02:53.8]} 9... Nd7 {[%clk 0:02:41]}
10. O-O {[%clk 0:02:52.3]} 10... O-O {[%clk 0:02:37]} 11. Nf4 {[%clk 0:02:51.6]}
11... Ne5 {[%clk 0:02:36.6]} 12. Ne6 {[%clk 0:02:50.4]} 12... Bxe6 {[%clk
0:02:33]} 13. dxe6 {[%clk 0:02:51.3]} 13... Rab8 {[%clk 0:02:29.1]} 14. Bd5
{[%clk 0:02:29.7]} 14... b5 {[%clk 0:02:25.3]} 15. Ne2 {[%clk 0:02:23]} 15...
Nc4 {[%clk 0:02:19.9]} 16. c3 {[%clk 0:02:15.1]} 16... Nxb2 {[%clk 0:02:17.1]}
17. Qd2 {[%clk 0:01:48.1]} 17... Na4 {[%clk 0:02:11.2]} 18. Rac1 {[%clk
0:01:45.5]} 18... Nb6 {[%clk 0:02:08.8]} 19. h4 {[%clk 0:01:44.7]} 19... Rfc8
{[%clk 0:02:01.3]} 20. Nf4 {[%clk 0:01:43.6]} 20... a6 {[%clk 0:01:52.5]} 21.
Rfe1 {[%clk 0:01:42.8]} 21... Na4 {[%clk 0:01:40.9]} 22. Ne2 {[%clk 0:01:36.9]}
22... c4 {[%clk 0:01:37.6]} 23. Nd4 {[%clk 0:01:28.9]} 23... Nc5 {[%clk
0:01:36.6]} 24. Rcd1 {[%clk 0:00:55.7]} 24... Rc7 {[%clk 0:01:35.9]} 25. e4
{[%clk 0:00:55.2]} 25... f4 {[%clk 0:01:16.8]} 26. gxf4 {[%clk 0:00:47.2]} 26...
Qxh4 {[%clk 0:01:09.6]} 27. f5 {[%clk 0:00:32.8]} 27... Nd3 {[%clk 0:01:05.7]}
28. Re3 {[%clk 0:00:31]} 28... Bh6 {[%clk 0:01:03.3]} 29. Kf1 {[%clk 0:00:16.4]}
29... Qh1+ {[%clk 0:00:54.9]} 30. Ke2 {[%clk 0:00:16.4]} 30... Nf4# {[%clk
0:00:55.2]} 0-1